[Event "Late-Titled-Tuesday-Blitz-April-16-2024"]
[Site "Chess.com"]
[Date "2024.04.16"]
[Round "1"]
[White "Sanan_Sjugirov"]
[Black "SultaiC"]
[Result "1-0"]
[WhiteElo "3030"]
[BlackElo "2522"]
[TimeControl "180+1"]
[EndTime "14:06:24 PDT"]
[Termination "Sanan_Sjugirov won by checkmate"]

1. e4 {[%clk 0:03:00.9]} 1... c5 {[%clk 0:02:59.3]} 2. Nf3 {[%clk 0:02:59.9]}
2... d6 {[%clk 0:02:59.4]} 3. d4 {[%clk 0:02:57]} 3... cxd4 {[%clk 0:03:00.3]}
4. Nxd4 {[%clk 0:02:57.7]} 4... Nf6 {[%clk 0:02:59.7]} 5. Nc3 {[%clk 0:02:58.1]}
5... a6 {[%clk 0:03:00.3]} 6. Be3 {[%clk 0:02:57.5]} 6... e6 {[%clk 0:03:00.8]}
7. Be2 {[%clk 0:02:56.7]} 7... Be7 {[%clk 0:03:01.3]} 8. g4 {[%clk 0:02:55.1]}
8... O-O {[%clk 0:02:58]} 9. g5 {[%clk 0:02:52.6]} 9... Nfd7 {[%clk 0:02:58.6]}
10. h4 {[%clk 0:02:49.6]} 10... Nc6 {[%clk 0:02:59]} 11. Qd2 {[%clk 0:02:48.6]}
11... Nc5 {[%clk 0:02:55.8]} 12. O-O-O {[%clk 0:02:27.1]} 12... Nxd4 {[%clk
0:02:44]} 13. Bxd4 {[%clk 0:02:23.2]} 13... Qc7 {[%clk 0:02:30.8]} 14. h5 {[%clk
0:02:16.8]} 14... b5 {[%clk 0:02:23.5]} 15. a3 {[%clk 0:02:12.9]} 15... Bb7
{[%clk 0:02:10.2]} 16. f3 {[%clk 0:02:10.7]} 16... d5 {[%clk 0:02:02.7]} 17.
exd5 {[%clk 0:01:17.9]} 17... Bxd5 {[%clk 0:02:03.6]} 18. Kb1 {[%clk 0:01:10.3]}
18... Rad8 {[%clk 0:01:58.2]} 19. Qe3 {[%clk 0:00:56.8]} 19... Bc4 {[%clk
0:01:43.7]} 20. Bxc4 {[%clk 0:00:51.9]} 20... bxc4 {[%clk 0:01:44.6]} 21. g6
{[%clk 0:00:50.2]} 21... f6 {[%clk 0:01:32.8]} 22. Bxc5 {[%clk 0:00:47.2]} 22...
Bxc5 {[%clk 0:01:29.7]} 23. Qxe6+ {[%clk 0:00:47]} 23... Kh8 {[%clk 0:01:30.3]}
24. Rxd8 {[%clk 0:00:42]} 24... Rxd8 {[%clk 0:01:31.2]} 25. h6 {[%clk
0:00:41.3]} 25... hxg6 {[%clk 0:01:25.9]} 26. Ne4 {[%clk 0:00:35.4]} 26... Bd4
{[%clk 0:01:16.7]} 27. c3 {[%clk 0:00:19]} 27... Be5 {[%clk 0:01:07.4]} 28.
hxg7+ {[%clk 0:00:10.7]} 28... Kxg7 {[%clk 0:01:08.3]} 29. Qh3 {[%clk
0:00:11.2]} 29... Rd7 {[%clk 0:01:07]} 30. Qh7+ {[%clk 0:00:07.5]} 30... Kf8
{[%clk 0:01:07.1]} 31. Qxg6 {[%clk 0:00:08]} 31... Ke7 {[%clk 0:01:00.2]} 32.
Rh7+ {[%clk 0:00:06]} 32... Ke6 {[%clk 0:01:00]} 33. Qe8+ {[%clk 0:00:05.6]}
33... Re7 {[%clk 0:00:58.9]} 34. Qg8+ {[%clk 0:00:05.8]} 34... Kf5 {[%clk
0:00:57.4]} 35. Qg4# {[%clk 0:00:05.5]} 1-0

[Event "Late-Titled-Tuesday-Blitz-April-16-2024"]
[Site "Chess.com"]
[Date "2024.04.16"]
[Round "1"]
[White "GWR2024"]
[Black "laziestwin"]
[Result "0-1"]
[WhiteElo "2185"]
[BlackElo "2559"]
[TimeControl "180+1"]
[EndTime "14:06:24 PDT"]
[Termination "laziestwin won by checkmate"]

1. e4 {[%clk 0:02:56.3]} 1... d6 {[%clk 0:02:56.6]} 2. d4 {[%clk 0:02:55.5]}
2... g6 {[%clk 0:02:56.7]} 3. h4 {[%clk 0:02:53.6]} 3... h5 {[%clk 0:02:50.5]}
4. Bc4 {[%clk 0:02:52.3]} 4... Bg7 {[%clk 0:02:50.3]} 5. Nf3 {[%clk 0:02:51.5]}
5... Nf6 {[%clk 0:02:49.4]} 6. Ng5 {[%clk 0:02:50.8]} 6... O-O {[%clk
0:02:44.6]} 7. Nc3 {[%clk 0:02:50.3]} 7... c6 {[%clk 0:02:42]} 8. Bb3 {[%clk
0:02:46.6]} 8... d5 {[%clk 0:02:31.2]} 9. Be3 {[%clk 0:02:36.5]} 9... dxe4
{[%clk 0:02:23.3]} 10. Ncxe4 {[%clk 0:02:35.5]} 10... Nbd7 {[%clk 0:02:22.2]}
11. Nxf7 {[%clk 0:02:30.9]} 11... Rxf7 {[%clk 0:02:16]} 12. Ng5 {[%clk
0:02:30.1]} 12... Nd5 {[%clk 0:02:16.4]} 13. Nxf7 {[%clk 0:02:23.2]} 13... Kxf7
{[%clk 0:02:16.4]} 14. Qf3+ {[%clk 0:02:11.1]} 14... Nf6 {[%clk 0:02:04.7]} 15.
O-O-O {[%clk 0:02:10.4]} 15... Bg4 {[%clk 0:02:04]} 16. Qg3 {[%clk 0:02:01.7]}
16... Bxd1 {[%clk 0:02:00]} 17. Rxd1 {[%clk 0:02:02.2]} 17... Qd6 {[%clk
0:02:00.4]} 18. Qh3 {[%clk 0:01:58.8]} 18... e6 {[%clk 0:01:57]} 19. c4 {[%clk
0:01:55]} 19... Nxe3 {[%clk 0:01:54.6]} 20. fxe3 {[%clk 0:01:55.9]} 20... c5
{[%clk 0:01:50.7]} 21. Rf1 {[%clk 0:01:41.7]} 21... cxd4 {[%clk 0:01:48.3]} 22.
c5 {[%clk 0:01:39.1]} 22... Qxc5+ {[%clk 0:01:48.1]} 23. Kb1 {[%clk 0:01:39.4]}
23... Re8 {[%clk 0:01:47.8]} 24. Rc1 {[%clk 0:01:32.7]} 24... Qf5+ {[%clk
0:01:47.4]} 25. Qxf5 {[%clk 0:01:22.8]} 25... gxf5 {[%clk 0:01:48.3]} 26. exd4
{[%clk 0:01:14.9]} 26... Nd5 {[%clk 0:01:46.3]} 27. Rf1 {[%clk 0:01:13.3]} 27...
Kg6 {[%clk 0:01:43.9]} 28. Re1 {[%clk 0:01:02.5]} 28... Kf7 {[%clk 0:01:38.1]}
29. Bd1 {[%clk 0:01:00.3]} 29... Nf6 {[%clk 0:01:34]} 30. Bf3 {[%clk 0:00:59.2]}
30... b6 {[%clk 0:01:33.6]} 31. Rc1 {[%clk 0:00:56.7]} 31... Re7 {[%clk
0:01:33.2]} 32. Rc6 {[%clk 0:00:55.6]} 32... Rd7 {[%clk 0:01:33]} 33. a4 {[%clk
0:00:47.9]} 33... Ng4 {[%clk 0:01:32.2]} 34. d5 {[%clk 0:00:46.5]} 34... exd5
{[%clk 0:01:31.9]} 35. a5 {[%clk 0:00:45.2]} 35... Ne5 {[%clk 0:01:31.6]} 36.
Bxh5+ {[%clk 0:00:41.9]} 36... Ke7 {[%clk 0:01:31.6]} 37. Rc8 {[%clk 0:00:41.2]}
37... bxa5 {[%clk 0:01:31.4]} 38. Be2 {[%clk 0:00:35.9]} 38... d4 {[%clk
0:01:30.7]} 39. Bb5 {[%clk 0:00:34.8]} 39... Rb7 {[%clk 0:01:26.7]} 40. Ba4
{[%clk 0:00:31.5]} 40... d3 {[%clk 0:01:24]} 41. h5 {[%clk 0:00:31.5]} 41... Ng4
{[%clk 0:01:11.1]} 42. Re8+ {[%clk 0:00:29.6]} 42... Kf7 {[%clk 0:01:10.1]} 43.
h6 {[%clk 0:00:28.5]} 43... Rxb2+ {[%clk 0:01:06.7]} 44. Kc1 {[%clk 0:00:28.8]}
44... d2+ {[%clk 0:01:06.3]} 45. Kd1 {[%clk 0:00:28.5]} 45... Bxh6 {[%clk
0:01:04.1]} 46. Rd8 {[%clk 0:00:25.2]} 46... Nf2+ {[%clk 0:01:04.1]} 47. Ke2
{[%clk 0:00:24.8]} 47... d1=Q# {[%clk 0:01:04.8]} 0-1

[Event "Late-Titled-Tuesday-Blitz-April-16-2024"]
[Site "Chess.com"]
[Date "2024.04.16"]
[Round "1"]
[White "Andrei_Skvortsov"]
[Black "ArchibaldCerveza29"]
[Result "1-0"]
[WhiteElo "2644"]
[BlackElo "2345"]
[TimeControl "180+1"]
[EndTime "14:06:27 PDT"]
[Termination "Andrei_Skvortsov won by checkmate"]

1. e4 {[%clk 0:03:00.9]} 1... e5 {[%clk 0:02:59.5]} 2. d4 {[%clk 0:03:01]} 2...
exd4 {[%clk 0:02:59.4]} 3. Qxd4 {[%clk 0:03:01.9]} 3... Nc6 {[%clk 0:02:59.3]}
4. Qd3 {[%clk 0:03:02.8]} 4... Nf6 {[%clk 0:02:59.6]} 5. Nc3 {[%clk 0:03:03.5]}
5... Bc5 {[%clk 0:02:59.4]} 6. Qg3 {[%clk 0:03:02.8]} 6... Kf8 {[%clk
0:02:55.3]} 7. Bd2 {[%clk 0:02:46.4]} 7... d6 {[%clk 0:02:47.6]} 8. O-O-O {[%clk
0:02:43]} 8... a6 {[%clk 0:02:45.1]} 9. Be3 {[%clk 0:02:31]} 9... Bxe3+ {[%clk
0:02:43.7]} 10. Qxe3 {[%clk 0:02:30.6]} 10... h5 {[%clk 0:02:39]} 11. h3 {[%clk
0:02:27.9]} 11... h4 {[%clk 0:02:36.8]} 12. Nf3 {[%clk 0:02:26.1]} 12... Be6
{[%clk 0:02:35.1]} 13. Ng5 {[%clk 0:02:23.6]} 13... Qd7 {[%clk 0:02:29.8]} 14.
f4 {[%clk 0:02:21.4]} 14... Qe8 {[%clk 0:02:24]} 15. Bd3 {[%clk 0:02:11.8]}
15... Rd8 {[%clk 0:02:21.1]} 16. Rhe1 {[%clk 0:02:11.9]} 16... b5 {[%clk
0:02:10.3]} 17. Kb1 {[%clk 0:02:08.1]} 17... Rh6 {[%clk 0:02:01.5]} 18. Qf2
{[%clk 0:01:58.5]} 18... Kg8 {[%clk 0:01:54.3]} 19. Nf3 {[%clk 0:01:51.8]} 19...
d5 {[%clk 0:01:46.4]} 20. exd5 {[%clk 0:01:42.8]} 20... b4 {[%clk 0:01:34.8]}
21. dxe6 {[%clk 0:01:37]} 21... bxc3 {[%clk 0:01:34.5]} 22. exf7+ {[%clk
0:01:23.4]} 22... Qxf7 {[%clk 0:01:35.4]} 23. Ng5 {[%clk 0:01:23]} 23... Qf8
{[%clk 0:01:18.4]} 24. Bc4+ {[%clk 0:01:16.2]} 24... Kh8 {[%clk 0:01:18.3]} 25.
Nf7+ {[%clk 0:01:15.6]} 25... Kh7 {[%clk 0:01:18]} 26. Nxd8 {[%clk 0:01:14.8]}
26... Nxd8 {[%clk 0:01:10.7]} 27. Qf3 {[%clk 0:01:12.2]} 27... Nf7 {[%clk
0:00:57.3]} 28. Qd3+ {[%clk 0:01:07.2]} 28... Kh8 {[%clk 0:00:57.2]} 29. Qxc3
{[%clk 0:01:07.3]} 29... Nd6 {[%clk 0:00:57.6]} 30. Bd3 {[%clk 0:01:05.2]} 30...
Rh5 {[%clk 0:00:56.9]} 31. Re5 {[%clk 0:01:04.3]} 31... Rh6 {[%clk 0:00:55]} 32.
Bxa6 {[%clk 0:01:02.7]} 32... Qa8 {[%clk 0:00:53.2]} 33. Bf1 {[%clk 0:01:01]}
33... Rg6 {[%clk 0:00:52.7]} 34. a3 {[%clk 0:00:55.9]} 34... Rg3 {[%clk
0:00:51.9]} 35. Qb4 {[%clk 0:00:52.7]} 35... Nde4 {[%clk 0:00:49.1]} 36. Qa5
{[%clk 0:00:46.9]} 36... Qb7 {[%clk 0:00:44]} 37. Rh5+ {[%clk 0:00:44.4]} 37...
Kg8 {[%clk 0:00:35.7]} 38. Bc4+ {[%clk 0:00:43.9]} 38... Kf8 {[%clk 0:00:35.3]}
39. Rh8+ {[%clk 0:00:40.2]} 39... Ke7 {[%clk 0:00:35]} 40. Qe5# {[%clk
0:00:40.7]} 1-0

[Event "Late-Titled-Tuesday-Blitz-April-16-2024"]
[Site "Chess.com"]
[Date "2024.04.16"]
[Round "1"]
[White "FMOlexandrProhorov"]
[Black "ReadySkate"]
[Result "0-1"]
[WhiteElo "2279"]
[BlackElo "2600"]
[TimeControl "180+1"]
[EndTime "14:06:28 PDT"]
[Termination "ReadySkate won on time"]

1. d4 {[%clk 0:03:00.9]} 1... Nf6 {[%clk 0:02:59.1]} 2. c4 {[%clk 0:02:59.2]}
2... g6 {[%clk 0:02:59.3]} 3. Nc3 {[%clk 0:02:59.5]} 3... d5 {[%clk 0:02:59.4]}
4. cxd5 {[%clk 0:02:59.6]} 4... Nxd5 {[%clk 0:03:00.3]} 5. Na4 {[%clk
0:02:59.9]} 5... Bg7 {[%clk 0:03:00]} 6. e4 {[%clk 0:02:59.8]} 6... Nb6 {[%clk
0:03:00.6]} 7. Nf3 {[%clk 0:02:58.5]} 7... O-O {[%clk 0:03:00.7]} 8. Be3 {[%clk
0:02:55.4]} 8... Bg4 {[%clk 0:03:00.8]} 9. Be2 {[%clk 0:02:55.3]} 9... Nc6
{[%clk 0:02:59.9]} 10. Nc5 {[%clk 0:02:55.1]} 10... Bxf3 {[%clk 0:02:58.9]} 11.
gxf3 {[%clk 0:02:47.4]} 11... Nxd4 {[%clk 0:02:55.2]} 12. Nxb7 {[%clk 0:02:44]}
12... Qc8 {[%clk 0:02:55.1]} 13. Bxd4 {[%clk 0:02:36.9]} 13... Qxb7 {[%clk
0:02:53.1]} 14. Bxg7 {[%clk 0:02:36]} 14... Kxg7 {[%clk 0:02:54]} 15. h4 {[%clk
0:02:29.8]} 15... h5 {[%clk 0:02:51.5]} 16. Rc1 {[%clk 0:02:25.7]} 16... Rac8
{[%clk 0:02:46.1]} 17. Qc2 {[%clk 0:02:23.7]} 17... c5 {[%clk 0:02:44.9]} 18.
Kf1 {[%clk 0:02:13.8]} 18... e5 {[%clk 0:02:43.7]} 19. Qc3 {[%clk 0:02:06.7]}
19... Qe7 {[%clk 0:02:41.5]} 20. b3 {[%clk 0:02:06.2]} 20... Rfd8 {[%clk
0:02:39.7]} 21. Ba6 {[%clk 0:01:58.6]} 21... Rc7 {[%clk 0:02:37.8]} 22. Kg2
{[%clk 0:01:46]} 22... Rd4 {[%clk 0:02:24.3]} 23. Rc2 {[%clk 0:01:34.1]} 23...
Nd7 {[%clk 0:02:08.2]} 24. Bc4 {[%clk 0:01:32.4]} 24... Nf8 {[%clk 0:02:06.9]}
25. Rcc1 {[%clk 0:01:15.4]} 25... g5 {[%clk 0:02:05.5]} 26. Qe3 {[%clk
0:01:00.2]} 26... gxh4 {[%clk 0:01:56.4]} 27. Kh2 {[%clk 0:00:49.7]} 27... Ng6
{[%clk 0:01:54.8]} 28. Rhg1 {[%clk 0:00:44.2]} 28... Qf6 {[%clk 0:01:53.5]} 29.
Rg5 {[%clk 0:00:37.9]} 29... Kf8 {[%clk 0:01:52.1]} 30. Rf5 {[%clk 0:00:35]}
30... Qg7 {[%clk 0:01:49.6]} 31. Rg1 {[%clk 0:00:30.1]} 31... Rd6 {[%clk
0:01:46.9]} 32. Qc3 {[%clk 0:00:19.3]} 32... Rf6 {[%clk 0:01:37.6]} 33. Qa5
{[%clk 0:00:18.1]} 33... Rb6 {[%clk 0:01:31.8]} 34. Rxh5 {[%clk 0:00:12.4]}
34... h3 {[%clk 0:01:22.3]} 35. Rxh3 {[%clk 0:00:11.8]} 35... Qf6 {[%clk
0:01:21.4]} 36. Rhg3 {[%clk 0:00:08.5]} 36... Qh4+ {[%clk 0:01:21]} 37. Kg2
{[%clk 0:00:08.3]} 37... Qd8 {[%clk 0:01:14.3]} 38. Qd2 {[%clk 0:00:06.6]} 38...
Qxd2 {[%clk 0:01:13]} 0-1

[Event "Late-Titled-Tuesday-Blitz-April-16-2024"]
[Site "Chess.com"]
[Date "2024.04.16"]
[Round "1"]
[White "GoltsevDmitry2000"]
[Black "Veleamater"]
[Result "1-0"]
[WhiteElo "2780"]
[BlackElo "2429"]
[TimeControl "180+1"]
[EndTime "14:06:29 PDT"]
[Termination "GoltsevDmitry2000 won on time"]

1. e4 {[%clk 0:02:36.1]} 1... d6 {[%clk 0:03:00.9]} 2. d4 {[%clk 0:02:34]} 2...
g6 {[%clk 0:03:01.8]} 3. h4 {[%clk 0:02:32]} 3... Bg7 {[%clk 0:03:02.7]} 4. h5
{[%clk 0:02:30.3]} 4... gxh5 {[%clk 0:03:03]} 5. c3 {[%clk 0:02:26.1]} 5... Nf6
{[%clk 0:03:02.8]} 6. Bd3 {[%clk 0:02:19.8]} 6... h6 {[%clk 0:03:01.6]} 7. Nf3
{[%clk 0:02:14.9]} 7... Nc6 {[%clk 0:03:00.8]} 8. Bf4 {[%clk 0:02:09.6]} 8...
Bg4 {[%clk 0:03:00.4]} 9. Qb3 {[%clk 0:01:58.7]} 9... Rb8 {[%clk 0:02:50.2]} 10.
Nbd2 {[%clk 0:01:56.6]} 10... a6 {[%clk 0:02:48.4]} 11. Nh4 {[%clk 0:01:45.8]}
11... e5 {[%clk 0:02:39]} 12. Be3 {[%clk 0:01:34.9]} 12... Ne7 {[%clk
0:02:20.5]} 13. f3 {[%clk 0:01:31.4]} 13... Be6 {[%clk 0:02:20.4]} 14. d5 {[%clk
0:01:31.1]} 14... Bd7 {[%clk 0:02:20.3]} 15. Ba7 {[%clk 0:01:28]} 15... Ra8
{[%clk 0:02:19]} 16. Qxb7 {[%clk 0:01:26.5]} 16... O-O {[%clk 0:02:15.6]} 17.
Be3 {[%clk 0:01:21.7]} 17... Ng6 {[%clk 0:02:05.3]} 18. g3 {[%clk 0:01:16.7]}
18... Rb8 {[%clk 0:01:39.5]} 19. Qxa6 {[%clk 0:01:15]} 19... Rxb2 {[%clk
0:01:38.8]} 20. Qa3 {[%clk 0:01:05.2]} 20... Rb8 {[%clk 0:01:34.8]} 21. Qc1
{[%clk 0:01:03.5]} 21... Ra8 {[%clk 0:01:32.6]} 22. Nb3 {[%clk 0:01:01.8]} 22...
Ba4 {[%clk 0:01:31.2]} 23. Kf2 {[%clk 0:00:50.3]} 23... c6 {[%clk 0:01:21.3]}
24. Bxh6 {[%clk 0:00:44.6]} 24... Nh7 {[%clk 0:01:19.9]} 25. Bxg7 {[%clk
0:00:42]} 25... Kxg7 {[%clk 0:01:19.8]} 26. Nf5+ {[%clk 0:00:42.9]} 26... Kh8
{[%clk 0:01:17.8]} 27. Qh6 {[%clk 0:00:42.2]} 27... Qf6 {[%clk 0:00:50.5]} 28.
Rxh5 {[%clk 0:00:40.7]} 1-0

[Event "Late-Titled-Tuesday-Blitz-April-16-2024"]
[Site "Chess.com"]
[Date "2024.04.16"]
[Round "1"]
[White "Agustin_Meza"]
[Black "DeArron_Fox"]
[Result "0-1"]
[WhiteElo "2199"]
[BlackElo "2562"]
[TimeControl "180+1"]
[EndTime "14:06:29 PDT"]
[Termination "DeArron_Fox won by checkmate"]

1. e4 {[%clk 0:02:59.9]} 1... c5 {[%clk 0:02:58.2]} 2. Nf3 {[%clk 0:02:59.9]}
2... e6 {[%clk 0:02:58.7]} 3. d4 {[%clk 0:02:59.9]} 3... cxd4 {[%clk 0:02:59.6]}
4. Nxd4 {[%clk 0:03:00.8]} 4... a6 {[%clk 0:03:00.2]} 5. Nc3 {[%clk 0:02:56.9]}
5... b5 {[%clk 0:02:59.7]} 6. a3 {[%clk 0:02:55.8]} 6... Bb7 {[%clk 0:03:00.1]}
7. Bd3 {[%clk 0:02:52.4]} 7... Nc6 {[%clk 0:02:59.8]} 8. Nf3 {[%clk 0:02:47.3]}
8... Nf6 {[%clk 0:02:54]} 9. O-O {[%clk 0:02:46.7]} 9... Qc7 {[%clk 0:02:27.5]}
10. Re1 {[%clk 0:02:36.3]} 10... Bc5 {[%clk 0:02:27.1]} 11. Be3 {[%clk
0:02:22.7]} 11... Bxe3 {[%clk 0:02:25.6]} 12. Rxe3 {[%clk 0:02:23.6]} 12... Ng4
{[%clk 0:02:02.7]} 13. Re1 {[%clk 0:02:21.2]} 13... O-O {[%clk 0:01:47.1]} 14.
h3 {[%clk 0:02:18.2]} 14... Nge5 {[%clk 0:01:47.1]} 15. Nxe5 {[%clk 0:02:18]}
15... Nxe5 {[%clk 0:01:43.6]} 16. f4 {[%clk 0:02:18]} 16... Nc4 {[%clk
0:01:35.7]} 17. Bxc4 {[%clk 0:02:14.5]} 17... bxc4 {[%clk 0:01:24.8]} 18. Qd2
{[%clk 0:02:10.6]} 18... Rab8 {[%clk 0:01:14.2]} 19. b4 {[%clk 0:01:35.8]} 19...
cxb3 {[%clk 0:01:12.9]} 20. cxb3 {[%clk 0:01:36.2]} 20... Qb6+ {[%clk
0:01:12.6]} 21. Kh1 {[%clk 0:01:32.7]} 21... Qxb3 {[%clk 0:01:12.5]} 22. Reb1
{[%clk 0:00:57.8]} 22... Qc4 {[%clk 0:01:11.8]} 23. Rb4 {[%clk 0:00:37]} 23...
Qc7 {[%clk 0:01:11.3]} 24. Rab1 {[%clk 0:00:32.9]} 24... Bc6 {[%clk 0:01:10.3]}
25. Ne2 {[%clk 0:00:23.9]} 25... Bxe4 {[%clk 0:00:59.6]} 26. Rxb8 {[%clk
0:00:19.1]} 26... Rxb8 {[%clk 0:01:00.5]} 27. Rxb8+ {[%clk 0:00:19.7]} 27...
Qxb8 {[%clk 0:01:01.4]} 28. Qxd7 {[%clk 0:00:19.4]} 28... h6 {[%clk 0:00:58]}
29. Qd4 {[%clk 0:00:19.1]} 29... Qb1+ {[%clk 0:00:48.4]} 30. Kh2 {[%clk
0:00:18.9]} 30... Qc2 {[%clk 0:00:49]} 31. Qe3 {[%clk 0:00:17.2]} 31... Bd5
{[%clk 0:00:43.7]} 32. Ng3 {[%clk 0:00:13.9]} 32... Qxg2# {[%clk 0:00:42.7]} 0-1

[Event "Late-Titled-Tuesday-Blitz-April-16-2024"]
[Site "Chess.com"]
[Date "2024.04.16"]
[Round "1"]
[White "LyonBeast"]
[Black "DirtyKabab"]
[Result "1-0"]
[WhiteElo "3128"]
[BlackElo "2532"]
[TimeControl "180+1"]
[EndTime "14:06:34 PDT"]
[Termination "LyonBeast won on time"]

1. Nf3 {[%clk 0:02:58.7]} 1... d5 {[%clk 0:02:59.1]} 2. c4 {[%clk 0:02:57.5]}
2... d4 {[%clk 0:02:56.9]} 3. b4 {[%clk 0:02:57.5]} 3... g6 {[%clk 0:02:53.5]}
4. Bb2 {[%clk 0:02:55.6]} 4... Bg7 {[%clk 0:02:53.1]} 5. g3 {[%clk 0:02:55.2]}
5... Nh6 {[%clk 0:02:52.2]} 6. Bg2 {[%clk 0:02:54.7]} 6... O-O {[%clk 0:02:52]}
7. O-O {[%clk 0:02:54.5]} 7... Nf5 {[%clk 0:02:51.8]} 8. d3 {[%clk 0:02:49.3]}
8... e5 {[%clk 0:02:44.8]} 9. Nbd2 {[%clk 0:02:49.3]} 9... Re8 {[%clk 0:02:36]}
10. a4 {[%clk 0:02:46.3]} 10... a5 {[%clk 0:02:31.6]} 11. b5 {[%clk 0:02:45.4]}
11... Nd7 {[%clk 0:02:29.7]} 12. Nb3 {[%clk 0:02:44.2]} 12... Bf8 {[%clk
0:02:21.3]} 13. Nfd2 {[%clk 0:02:35.8]} 13... Nc5 {[%clk 0:02:03.7]} 14. Nxc5
{[%clk 0:02:35.6]} 14... Bxc5 {[%clk 0:02:04.6]} 15. Ne4 {[%clk 0:02:31.4]}
15... Bb4 {[%clk 0:02:00.6]} 16. Qc1 {[%clk 0:02:13.4]} 16... Kg7 {[%clk
0:01:45.6]} 17. Ba3 {[%clk 0:02:12.8]} 17... Bxa3 {[%clk 0:01:35.7]} 18. Qxa3
{[%clk 0:02:13.7]} 18... Qe7 {[%clk 0:01:34.8]} 19. Rfb1 {[%clk 0:01:58]} 19...
Qxa3 {[%clk 0:01:28.3]} 20. Rxa3 {[%clk 0:01:58.9]} 20... Nd6 {[%clk 0:01:09.9]}
21. Nd2 {[%clk 0:01:45.6]} 21... Rb8 {[%clk 0:01:03.7]} 22. c5 {[%clk
0:01:43.4]} 22... Nf5 {[%clk 0:01:01.3]} 23. b6 {[%clk 0:01:40.9]} 23... c6
{[%clk 0:00:54.2]} 24. Nc4 {[%clk 0:01:40.4]} 24... Ra8 {[%clk 0:00:50.2]} 25.
Re1 {[%clk 0:01:33.8]} 25... f6 {[%clk 0:00:46.3]} 26. g4 {[%clk 0:01:26.8]}
26... Nh4 {[%clk 0:00:34.3]} 27. Nd6 {[%clk 0:01:26.6]} 27... Rd8 {[%clk
0:00:33.7]} 28. e3 {[%clk 0:01:21.2]} 28... dxe3 {[%clk 0:00:31.7]} 29. Rxe3
{[%clk 0:01:19.9]} 29... Nxg2 {[%clk 0:00:22.8]} 30. Kxg2 {[%clk 0:01:20.8]}
30... Rxd6 {[%clk 0:00:13.7]} 31. cxd6 {[%clk 0:01:20.8]} 31... Bxg4 {[%clk
0:00:12]} 32. d4 {[%clk 0:01:20.6]} 32... Rd8 {[%clk 0:00:08.4]} 33. dxe5 {[%clk
0:01:20.7]} 33... fxe5 {[%clk 0:00:08.2]} 34. Rxe5 {[%clk 0:01:21.6]} 34... Kf6
{[%clk 0:00:05.7]} 35. Re7 {[%clk 0:01:20.9]} 35... Rd7 {[%clk 0:00:03.6]} 36.
Rxd7 {[%clk 0:01:20.9]} 36... Bxd7 {[%clk 0:00:04.5]} 37. Re3 {[%clk 0:01:19.6]}
37... Be6 {[%clk 0:00:03.9]} 38. f4 {[%clk 0:01:16.9]} 38... c5 {[%clk
0:00:03.9]} 39. Re5 {[%clk 0:01:16.8]} 39... c4 {[%clk 0:00:03.9]} 40. Kf2
{[%clk 0:01:17.5]} 40... h6 {[%clk 0:00:03.3]} 41. Rxa5 {[%clk 0:01:16.5]} 41...
g5 {[%clk 0:00:02.1]} 42. fxg5+ {[%clk 0:01:15.1]} 42... hxg5 {[%clk 0:00:03]}
43. Rc5 {[%clk 0:01:15.5]} 1-0

[Event "Late-Titled-Tuesday-Blitz-April-16-2024"]
[Site "Chess.com"]
[Date "2024.04.16"]
[Round "1"]
[White "CrushingKings"]
[Black "PawnEatingZombie"]
[Result "1-0"]
[WhiteElo "2584"]
[BlackElo "2240"]
[TimeControl "180+1"]
[EndTime "14:06:34 PDT"]
[Termination "CrushingKings won on time"]

1. Nf3 {[%clk 0:03:00.9]} 1... Nf6 {[%clk 0:02:59.6]} 2. g3 {[%clk 0:02:58.4]}
2... g6 {[%clk 0:02:59.6]} 3. b3 {[%clk 0:02:58.6]} 3... Bg7 {[%clk 0:02:59.7]}
4. Bb2 {[%clk 0:02:59.2]} 4... O-O {[%clk 0:03:00.1]} 5. Bg2 {[%clk 0:02:58.8]}
5... c5 {[%clk 0:03:00.5]} 6. c4 {[%clk 0:02:58.1]} 6... Nc6 {[%clk 0:03:00.9]}
7. O-O {[%clk 0:02:57.7]} 7... d6 {[%clk 0:02:53.1]} 8. d4 {[%clk 0:02:56.7]}
8... cxd4 {[%clk 0:02:52.9]} 9. Nxd4 {[%clk 0:02:56.2]} 9... Bd7 {[%clk
0:02:53.5]} 10. Nc2 {[%clk 0:02:55.2]} 10... a6 {[%clk 0:02:49.2]} 11. Nc3
{[%clk 0:02:55]} 11... Rb8 {[%clk 0:02:48.2]} 12. Ne3 {[%clk 0:02:36]} 12... b5
{[%clk 0:02:44]} 13. cxb5 {[%clk 0:02:21.8]} 13... axb5 {[%clk 0:02:42.3]} 14.
Qd2 {[%clk 0:02:22.3]} 14... Re8 {[%clk 0:02:22]} 15. Ncd5 {[%clk 0:02:12.1]}
15... Nxd5 {[%clk 0:02:15.9]} 16. Nxd5 {[%clk 0:02:09.4]} 16... Bxb2 {[%clk
0:02:07.9]} 17. Qxb2 {[%clk 0:02:08.9]} 17... Qa5 {[%clk 0:01:58.3]} 18. Rac1
{[%clk 0:01:52.6]} 18... Rbc8 {[%clk 0:01:51.9]} 19. Rfd1 {[%clk 0:01:50.8]}
19... Qa7 {[%clk 0:01:15.7]} 20. h3 {[%clk 0:01:40.7]} 20... b4 {[%clk
0:00:24.9]} 21. Rc4 {[%clk 0:01:34]} 21... Rb8 {[%clk 0:00:14.2]} 22. Nf6+
{[%clk 0:01:21.5]} 22... exf6 {[%clk 0:00:13]} 23. Bxc6 {[%clk 0:01:22.2]} 23...
Bxc6 {[%clk 0:00:12.7]} 24. Rxc6 {[%clk 0:01:21.1]} 24... Re6 {[%clk 0:00:10.3]}
25. Rdxd6 {[%clk 0:01:15.5]} 25... Rxd6 {[%clk 0:00:07.4]} 26. Rxd6 {[%clk
0:01:15.5]} 26... Re8 {[%clk 0:00:06.3]} 27. Rxf6 {[%clk 0:01:06]} 27... Qe7
{[%clk 0:00:06.3]} 28. Rf4 {[%clk 0:00:56.8]} 28... Qxe2 {[%clk 0:00:06]} 29.
Qf6 {[%clk 0:00:57.3]} 29... Qd1+ {[%clk 0:00:04.1]} 30. Kg2 {[%clk 0:00:53.3]}
30... Qd5+ {[%clk 0:00:04.7]} 31. Kh2 {[%clk 0:00:52.9]} 31... Re1 {[%clk
0:00:04.8]} 32. Rf3 {[%clk 0:00:48]} 32... h5 {[%clk 0:00:01.6]} 33. h4 {[%clk
0:00:44]} 1-0